[Event "Early-Titled-Tuesday-Blitz-June-18-2024"]
[Site "Chess.com"]
[Date "2024.06.18"]
[Round "7"]
[White "KoshkaMatrioshka"]
[Black "Giantgoogachess"]
[Result "0-1"]
[WhiteElo "2582"]
[BlackElo "2458"]
[TimeControl "180+1"]
[EndTime "9:20:06 PDT"]
[Termination "Giantgoogachess won by resignation"]

1. c4 {[%clk 0:03:00.9]} 1... Nf6 {[%clk 0:02:56.8]} 2. Nf3 {[%clk 0:03:00.3]}
2... g6 {[%clk 0:02:56.8]} 3. b3 {[%clk 0:03:00.5]} 3... Bg7 {[%clk 0:02:57.5]}
4. Bb2 {[%clk 0:03:00.9]} 4... O-O {[%clk 0:02:58.3]} 5. g3 {[%clk 0:03:01.4]}
5... b6 {[%clk 0:02:54]} 6. Bg2 {[%clk 0:03:01.6]} 6... Bb7 {[%clk 0:02:54.7]}
7. O-O {[%clk 0:03:02]} 7... e6 {[%clk 0:02:55.3]} 8. e3 {[%clk 0:03:01.1]} 8...
c5 {[%clk 0:02:53.1]} 9. Qe2 {[%clk 0:03:00.1]} 9... Nc6 {[%clk 0:02:49.8]} 10.
d4 {[%clk 0:02:55.4]} 10... cxd4 {[%clk 0:02:45.4]} 11. Nxd4 {[%clk 0:02:48.4]}
11... a6 {[%clk 0:02:39.2]} 12. Rd1 {[%clk 0:02:41.7]} 12... Qc7 {[%clk
0:02:38.2]} 13. Nd2 {[%clk 0:02:35.9]} 13... d5 {[%clk 0:02:32]} 14. cxd5 {[%clk
0:02:30.9]} 14... Nxd4 {[%clk 0:02:31.5]} 15. Bxd4 {[%clk 0:02:29]} 15... Nxd5
{[%clk 0:02:30.7]} 16. Bxg7 {[%clk 0:02:28.1]} 16... Kxg7 {[%clk 0:02:31.6]} 17.
Rac1 {[%clk 0:01:43.7]} 17... Qe7 {[%clk 0:02:29.1]} 18. e4 {[%clk 0:01:38.8]}
18... Nf6 {[%clk 0:02:25.6]} 19. e5 {[%clk 0:01:36.8]} 19... Nd5 {[%clk
0:02:23.7]} 20. Ne4 {[%clk 0:01:33.3]} 20... Rfc8 {[%clk 0:02:22.2]} 21. Nd6
{[%clk 0:01:31.4]} 21... Rxc1 {[%clk 0:01:58.2]} 22. Rxc1 {[%clk 0:01:30.1]}
22... Rd8 {[%clk 0:01:58.9]} 23. Rc4 {[%clk 0:01:06.5]} 23... b5 {[%clk
0:01:40]} 24. Rd4 {[%clk 0:00:59.2]} 24... Ba8 {[%clk 0:01:36.4]} 25. Qd2 {[%clk
0:00:58.5]} 25... Rd7 {[%clk 0:01:26.7]} 26. Qb2 {[%clk 0:00:48.9]} 26... Rc7
{[%clk 0:01:24.7]} 27. h4 {[%clk 0:00:41.5]} 27... h5 {[%clk 0:01:20.8]} 28. Kh2
{[%clk 0:00:37.7]} 28... Nb6 {[%clk 0:01:00.5]} 29. Bxa8 {[%clk 0:00:33.4]}
29... Nxa8 {[%clk 0:01:01.4]} 30. Ne4 {[%clk 0:00:31.7]} 30... Nb6 {[%clk
0:00:58.4]} 31. Nf6 {[%clk 0:00:31.6]} 31... Nd7 {[%clk 0:00:54.9]} 32. Rf4
{[%clk 0:00:16.9]} 32... Rc5 {[%clk 0:00:46.2]} 33. b4 {[%clk 0:00:09.1]} 33...
Rc4 {[%clk 0:00:40.4]} 34. Rxc4 {[%clk 0:00:09]} 34... bxc4 {[%clk 0:00:41.3]}
35. Ne4 {[%clk 0:00:06.6]} 35... Nb6 {[%clk 0:00:39.3]} 36. Ng5 {[%clk
0:00:04.6]} 36... Nd5 {[%clk 0:00:37.7]} 37. a3 {[%clk 0:00:05.2]} 37... c3
{[%clk 0:00:37.9]} 38. Qc2 {[%clk 0:00:05.7]} 38... Qc7 {[%clk 0:00:37.9]} 39.
Ne4 {[%clk 0:00:05.3]} 39... Qxe5 {[%clk 0:00:37.4]} 40. Kg2 {[%clk 0:00:03.3]}
40... Qd4 {[%clk 0:00:32.4]} 41. Kf3 {[%clk 0:00:02.6]} 41... Qc4 {[%clk
0:00:31.8]} 42. Kg2 {[%clk 0:00:01.9]} 42... e5 {[%clk 0:00:28.7]} 43. Kf3
{[%clk 0:00:02.4]} 43... f5 {[%clk 0:00:28.6]} 44. Ng5 {[%clk 0:00:02.9]} 44...
e4+ {[%clk 0:00:28.2]} 45. Kg2 {[%clk 0:00:03]} 45... e3 {[%clk 0:00:28.8]} 46.
fxe3 {[%clk 0:00:03]} 46... Nxe3+ {[%clk 0:00:29.1]} 0-1

[Event "Early-Titled-Tuesday-Blitz-June-18-2024"]
[Site "Chess.com"]
[Date "2024.06.18"]
[Round "7"]
[White "JoliyRoger"]
[Black "NM_Antelacus"]
[Result "0-1"]
[WhiteElo "2426"]
[BlackElo "2317"]
[TimeControl "180+1"]
[EndTime "9:20:06 PDT"]
[Termination "NM_Antelacus won on time"]

1. d4 {[%clk 0:02:56.2]} 1... Nf6 {[%clk 0:02:59.4]} 2. c4 {[%clk 0:02:55.8]}
2... e6 {[%clk 0:02:59.6]} 3. Nc3 {[%clk 0:02:55.6]} 3... Bb4 {[%clk 0:02:59.3]}
4. a3 {[%clk 0:02:56.1]} 4... Bxc3+ {[%clk 0:02:59]} 5. bxc3 {[%clk 0:02:57]}
5... O-O {[%clk 0:02:50.1]} 6. f3 {[%clk 0:02:56.8]} 6... d5 {[%clk 0:02:49]} 7.
cxd5 {[%clk 0:02:49.5]} 7... exd5 {[%clk 0:02:48.5]} 8. e3 {[%clk 0:02:49]} 8...
b6 {[%clk 0:02:42]} 9. Bd3 {[%clk 0:02:49.4]} 9... Ba6 {[%clk 0:02:40.1]} 10.
Ne2 {[%clk 0:02:49.9]} 10... Bxd3 {[%clk 0:02:39.3]} 11. Qxd3 {[%clk 0:02:50.8]}
11... c5 {[%clk 0:02:39]} 12. O-O {[%clk 0:02:51.3]} 12... Nc6 {[%clk
0:02:38.2]} 13. Ng3 {[%clk 0:02:48.9]} 13... Qd7 {[%clk 0:02:35.4]} 14. Ra2
{[%clk 0:02:48.7]} 14... Rad8 {[%clk 0:02:22]} 15. Re2 {[%clk 0:02:49]} 15...
Rfe8 {[%clk 0:02:21.1]} 16. Bb2 {[%clk 0:02:42]} 16... Na5 {[%clk 0:02:10.6]}
17. Rd1 {[%clk 0:02:34.8]} 17... Nc4 {[%clk 0:02:07.5]} 18. Bc1 {[%clk
0:02:35.1]} 18... cxd4 {[%clk 0:02:05]} 19. cxd4 {[%clk 0:02:34.8]} 19... b5
{[%clk 0:02:03.9]} 20. e4 {[%clk 0:02:34.8]} 20... dxe4 {[%clk 0:02:01.7]} 21.
fxe4 {[%clk 0:02:34.6]} 21... Qg4 {[%clk 0:01:53.5]} 22. Rf1 {[%clk 0:02:18.4]}
22... a6 {[%clk 0:01:48.3]} 23. Rf4 {[%clk 0:02:05.6]} 23... Qg6 {[%clk
0:01:47.6]} 24. Ref2 {[%clk 0:02:00.4]} 24... Rd7 {[%clk 0:01:45.4]} 25. Qd1
{[%clk 0:01:11.8]} 25... Nxe4 {[%clk 0:01:20.3]} 26. Re2 {[%clk 0:01:08.9]}
26... Ncd6 {[%clk 0:01:19]} 27. Qe1 {[%clk 0:00:54.4]} 27... f5 {[%clk
0:01:16.4]} 28. Nxf5 {[%clk 0:00:49]} 28... Nxf5 {[%clk 0:01:14.9]} 29. Rexe4
{[%clk 0:00:43.6]} 29... Rde7 {[%clk 0:01:06.9]} 30. Rxe7 {[%clk 0:00:28.1]}
30... Rxe7 {[%clk 0:01:06.3]} 31. Re4 {[%clk 0:00:28.5]} 31... Rxe4 {[%clk
0:00:58.2]} 32. Qxe4 {[%clk 0:00:27.7]} 32... Nd6 {[%clk 0:00:41.4]} 33. Qa8+
{[%clk 0:00:16.8]} 33... Kf7 {[%clk 0:00:40.4]} 34. Qa7+ {[%clk 0:00:14.1]}
34... Ke6 {[%clk 0:00:38.4]} 35. d5+ {[%clk 0:00:05.6]} 35... Kxd5 {[%clk
0:00:34.5]} 36. Qxa6 {[%clk 0:00:06.1]} 36... Qb1 {[%clk 0:00:30.5]} 37. Qa8+
{[%clk 0:00:03.7]} 37... Ke6 {[%clk 0:00:28.5]} 38. Qc6 {[%clk 0:00:01]} 38...
b4 {[%clk 0:00:20.3]} 0-1

[Event "Early-Titled-Tuesday-Blitz-June-18-2024"]
[Site "Chess.com"]
[Date "2024.06.18"]
[Round "7"]
[White "LastGladiator1"]
[Black "Javokhir_Sindarov05"]
[Result "1-0"]
[WhiteElo "2992"]
[BlackElo "3053"]
[TimeControl "180+1"]
[EndTime "9:20:08 PDT"]
[Termination "LastGladiator1 won by resignation"]

1. d4 {[%clk 0:03:00.9]} 1... Nf6 {[%clk 0:03:00.1]} 2. c4 {[%clk 0:03:00.4]}
2... g6 {[%clk 0:02:53]} 3. Nc3 {[%clk 0:02:57.3]} 3... Bg7 {[%clk 0:02:52.4]}
4. e4 {[%clk 0:02:57.4]} 4... O-O {[%clk 0:02:52.8]} 5. Nf3 {[%clk 0:02:56.9]}
5... d6 {[%clk 0:02:53.2]} 6. Be2 {[%clk 0:02:56.8]} 6... c5 {[%clk 0:02:53.9]}
7. O-O {[%clk 0:02:52.5]} 7... cxd4 {[%clk 0:02:54.2]} 8. Nxd4 {[%clk
0:02:51.9]} 8... Nc6 {[%clk 0:02:55.1]} 9. Be3 {[%clk 0:02:52]} 9... Bd7 {[%clk
0:02:55.7]} 10. h3 {[%clk 0:02:45.9]} 10... a6 {[%clk 0:02:41.1]} 11. a4 {[%clk
0:02:40.2]} 11... Nxd4 {[%clk 0:02:27.1]} 12. Bxd4 {[%clk 0:02:39]} 12... a5
{[%clk 0:02:24.8]} 13. Re1 {[%clk 0:02:27.5]} 13... Bc6 {[%clk 0:02:23]} 14. Bd3
{[%clk 0:02:21]} 14... Nd7 {[%clk 0:02:23]} 15. Bc2 {[%clk 0:02:17.2]} 15...
Bxd4 {[%clk 0:02:18.1]} 16. Qxd4 {[%clk 0:02:18.1]} 16... Qb6 {[%clk 0:02:18.9]}
17. Qd2 {[%clk 0:02:01.1]} 17... Nc5 {[%clk 0:02:02]} 18. Rab1 {[%clk
0:02:00.1]} 18... Qb4 {[%clk 0:01:59.6]} 19. b3 {[%clk 0:01:54.8]} 19... e5
{[%clk 0:01:58.5]} 20. Red1 {[%clk 0:01:45.3]} 20... Rad8 {[%clk 0:01:39.3]} 21.
f3 {[%clk 0:01:12.4]} 21... Ne6 {[%clk 0:01:36.2]} 22. Kh1 {[%clk 0:01:07]}
22... Nd4 {[%clk 0:01:30.9]} 23. Ne2 {[%clk 0:01:06.4]} 23... Qxd2 {[%clk
0:00:59]} 24. Rxd2 {[%clk 0:01:06.5]} 24... Nxe2 {[%clk 0:00:59.7]} 25. Rxe2
{[%clk 0:01:07.4]} 25... f6 {[%clk 0:01:00]} 26. Kg1 {[%clk 0:00:59]} 26... Kf7
{[%clk 0:00:59.8]} 27. Kf2 {[%clk 0:00:59.4]} 27... Ke6 {[%clk 0:00:58.9]} 28.
Ke3 {[%clk 0:01:00]} 28... f5 {[%clk 0:00:55.5]} 29. Rd1 {[%clk 0:00:56.5]}
29... f4+ {[%clk 0:00:50.5]} 30. Kd2 {[%clk 0:00:53.9]} 30... g5 {[%clk
0:00:49.6]} 31. Kc3 {[%clk 0:00:54.1]} 31... h5 {[%clk 0:00:48.7]} 32. Red2
{[%clk 0:00:54.5]} 32... b6 {[%clk 0:00:40.6]} 33. Rh1 {[%clk 0:00:49.3]} 33...
Rh8 {[%clk 0:00:38.5]} 34. Kd3 {[%clk 0:00:31.5]} 34... g4 {[%clk 0:00:20.5]}
35. hxg4 {[%clk 0:00:31.6]} 35... hxg4 {[%clk 0:00:21.4]} 36. Rxh8 {[%clk
0:00:31.6]} 36... Rxh8 {[%clk 0:00:21.8]} 37. fxg4 {[%clk 0:00:31.4]} 37... Rh1
{[%clk 0:00:03.4]} 38. Bd1 {[%clk 0:00:31.7]} 38... Re1 {[%clk 0:00:03.9]} 39.
Be2 {[%clk 0:00:32.3]} 39... Rb1 {[%clk 0:00:02.5]} 40. Bd1 {[%clk 0:00:25.2]}
40... Rb2 {[%clk 0:00:01.7]} 41. Rxb2 {[%clk 0:00:25]} 1-0

[Event "Early-Titled-Tuesday-Blitz-June-18-2024"]
[Site "Chess.com"]
[Date "2024.06.18"]
[Round "7"]
[White "zimmm36"]
[Black "FGHSMN"]
[Result "1-0"]
[WhiteElo "2789"]
[BlackElo "2900"]
[TimeControl "180+1"]
[EndTime "9:20:08 PDT"]
[Termination "zimmm36 won by checkmate"]

1. c4 {[%clk 0:03:00.9]} 1... e5 {[%clk 0:02:56.7]} 2. g3 {[%clk 0:03:00.7]}
2... Nc6 {[%clk 0:02:56.6]} 3. Bg2 {[%clk 0:03:00.5]} 3... f5 {[%clk 0:02:57.3]}
4. Nc3 {[%clk 0:03:01]} 4... Nf6 {[%clk 0:02:57.9]} 5. e3 {[%clk 0:02:59]} 5...
e4 {[%clk 0:02:58.1]} 6. Nge2 {[%clk 0:02:59.3]} 6... Ne5 {[%clk 0:02:57.9]} 7.
O-O {[%clk 0:02:58.2]} 7... Be7 {[%clk 0:02:44.7]} 8. b3 {[%clk 0:02:57.5]} 8...
O-O {[%clk 0:02:43.7]} 9. Nf4 {[%clk 0:02:55.9]} 9... g5 {[%clk 0:02:41.6]} 10.
Nfd5 {[%clk 0:02:56]} 10... c6 {[%clk 0:02:29.3]} 11. Nxe7+ {[%clk 0:02:52]}
11... Qxe7 {[%clk 0:02:30.2]} 12. Ne2 {[%clk 0:02:49.5]} 12... Nf3+ {[%clk
0:02:25.2]} 13. Bxf3 {[%clk 0:02:43.3]} 13... exf3 {[%clk 0:02:24.4]} 14. Nd4
{[%clk 0:02:43.8]} 14... g4 {[%clk 0:02:22.9]} 15. Nxf5 {[%clk 0:02:43.4]} 15...
Qe5 {[%clk 0:02:21.3]} 16. Nh6+ {[%clk 0:02:30.7]} 16... Kg7 {[%clk 0:02:16]}
17. d4 {[%clk 0:02:31.6]} 17... Qh5 {[%clk 0:02:04.5]} 18. e4 {[%clk 0:02:31.3]}
18... Qh3 {[%clk 0:01:43.3]} 19. Nf5+ {[%clk 0:02:30.1]} 19... Kg8 {[%clk
0:01:42.7]} 20. Nh4 {[%clk 0:02:28.8]} 20... Nxe4 {[%clk 0:01:21.9]} 21. d5
{[%clk 0:02:11]} 21... Nc3 {[%clk 0:01:05.2]} 22. Qe1 {[%clk 0:01:59.3]} 22...
Ne2+ {[%clk 0:01:05.6]} 23. Kh1 {[%clk 0:01:58.2]} 23... d6 {[%clk 0:00:58.8]}
24. Bb2 {[%clk 0:01:57.6]} 24... Bf5 {[%clk 0:00:31.4]} 25. Qd2 {[%clk
0:01:53.9]} 25... Bg6 {[%clk 0:00:32]} 26. Qg5 {[%clk 0:01:25]} 26... Rae8
{[%clk 0:00:24.2]} 27. Rg1 {[%clk 0:01:23.9]} 27... Nxg1 {[%clk 0:00:15.8]} 28.
Rxg1 {[%clk 0:01:24.8]} 28... Rf7 {[%clk 0:00:15]} 29. dxc6 {[%clk 0:01:09.3]}
29... bxc6 {[%clk 0:00:15]} 30. c5 {[%clk 0:01:09.9]} 30... d5 {[%clk
0:00:13.9]} 31. Bd4 {[%clk 0:01:03.5]} 31... Kf8 {[%clk 0:00:08.8]} 32. b4
{[%clk 0:00:53]} 32... Re4 {[%clk 0:00:07.1]} 33. Qd8+ {[%clk 0:00:51.9]} 33...
Re8 {[%clk 0:00:07.8]} 34. Qd6+ {[%clk 0:00:51.8]} 34... Kg8 {[%clk 0:00:08.1]}
35. Qxc6 {[%clk 0:00:48]} 35... Re2 {[%clk 0:00:07.3]} 36. Qc8+ {[%clk 0:00:45]}
36... Rf8 {[%clk 0:00:07]} 37. Qd7 {[%clk 0:00:44.8]} 37... Rf7 {[%clk
0:00:06.8]} 38. Qd8+ {[%clk 0:00:44.5]} 38... Rf8 {[%clk 0:00:07.5]} 39. Qxd5+
{[%clk 0:00:44.7]} 39... Rf7 {[%clk 0:00:08.2]} 40. c6 {[%clk 0:00:38.1]} 40...
Rc2 {[%clk 0:00:05.3]} 41. Qe5 {[%clk 0:00:35.3]} 41... Kf8 {[%clk 0:00:03]} 42.
Qb8+ {[%clk 0:00:31.6]} 42... Ke7 {[%clk 0:00:03.6]} 43. Qc7+ {[%clk 0:00:31.8]}
43... Ke6 {[%clk 0:00:03.8]} 44. Qe5# {[%clk 0:00:31.9]} 1-0

[Event "Early-Titled-Tuesday-Blitz-June-18-2024"]
[Site "Chess.com"]
[Date "2024.06.18"]
[Round "7"]
[White "Cmorales2001"]
[Black "betta2004"]
[Result "0-1"]
[WhiteElo "2320"]
[BlackElo "2471"]
[TimeControl "180+1"]
[EndTime "9:20:10 PDT"]
[Termination "betta2004 won on time"]

1. e4 {[%clk 0:03:00.9]} 1... e5 {[%clk 0:02:42.5]} 2. Nf3 {[%clk 0:03:00.3]}
2... Nf6 {[%clk 0:02:42.9]} 3. Nxe5 {[%clk 0:02:57.9]} 3... Nc6 {[%clk
0:02:43.6]} 4. Nf3 {[%clk 0:02:53.5]} 4... Nxe4 {[%clk 0:02:43]} 5. d4 {[%clk
0:02:51.9]} 5... d5 {[%clk 0:02:32.4]} 6. Bd3 {[%clk 0:02:50.7]} 6... Bd6 {[%clk
0:02:25.2]} 7. O-O {[%clk 0:02:47.3]} 7... O-O {[%clk 0:02:25]} 8. c4 {[%clk
0:02:46.9]} 8... Nf6 {[%clk 0:02:13.2]} 9. Nc3 {[%clk 0:02:44.4]} 9... dxc4
{[%clk 0:02:11.9]} 10. Bxc4 {[%clk 0:02:45.3]} 10... Bg4 {[%clk 0:02:12.2]} 11.
Be3 {[%clk 0:02:38]} 11... Qd7 {[%clk 0:01:59.4]} 12. Re1 {[%clk 0:02:32.5]}
12... Rae8 {[%clk 0:01:56.3]} 13. h3 {[%clk 0:02:29.9]} 13... Bh5 {[%clk
0:01:56.2]} 14. Be2 {[%clk 0:02:17.3]} 14... Ne7 {[%clk 0:01:47.3]} 15. Ne5
{[%clk 0:02:10.3]} 15... Bxe2 {[%clk 0:01:38.9]} 16. Rxe2 {[%clk 0:02:07]} 16...
Qc8 {[%clk 0:01:37]} 17. Nc4 {[%clk 0:01:57.8]} 17... Nf5 {[%clk 0:01:13.1]} 18.
Nxd6 {[%clk 0:01:40.2]} 18... Nxd6 {[%clk 0:01:14]} 19. Bf4 {[%clk 0:01:37.6]}
19... Rxe2 {[%clk 0:01:10.6]} 20. Qxe2 {[%clk 0:01:37.2]} 20... Re8 {[%clk
0:01:10.2]} 21. Qd3 {[%clk 0:01:18.8]} 21... Qd7 {[%clk 0:00:20.5]} 22. Rd1
{[%clk 0:01:16.8]} 22... a6 {[%clk 0:00:19.3]} 23. Be5 {[%clk 0:01:10.8]} 23...
Re6 {[%clk 0:00:10.5]} 24. f4 {[%clk 0:00:35.6]} 24... Nde8 {[%clk 0:00:09.3]}
25. d5 {[%clk 0:00:27.4]} 25... Rb6 {[%clk 0:00:08.6]} 26. b3 {[%clk 0:00:25.1]}
26... Nd6 {[%clk 0:00:07]} 27. Bxf6 {[%clk 0:00:10.6]} 27... gxf6 {[%clk
0:00:07.9]} 28. Qd4 {[%clk 0:00:09.9]} 28... Nf5 {[%clk 0:00:05.6]} 29. Qe4
{[%clk 0:00:06.5]} 29... Nd6 {[%clk 0:00:05.2]} 30. Qd4 {[%clk 0:00:04.7]} 30...
Ne8 {[%clk 0:00:04.7]} 31. Ne4 {[%clk 0:00:03.6]} 31... a5 {[%clk 0:00:04]} 32.
d6 {[%clk 0:00:01.9]} 32... Rc6 {[%clk 0:00:01]} 0-1

[Event "Early-Titled-Tuesday-Blitz-June-18-2024"]
[Site "Chess.com"]
[Date "2024.06.18"]
[Round "7"]
[White "mortngabriel"]
[Black "Viktor_Poddubnyi"]
[Result "0-1"]
[WhiteElo "2479"]
[BlackElo "2327"]
[TimeControl "180+1"]
[EndTime "9:20:12 PDT"]
[Termination "Viktor_Poddubnyi won on time"]

1. e4 {[%clk 0:03:00.9]} 1... g6 {[%clk 0:03:00.4]} 2. d4 {[%clk 0:03:00.2]}
2... Bg7 {[%clk 0:03:01.1]} 3. Nc3 {[%clk 0:03:00.7]} 3... d6 {[%clk 0:03:01.4]}
4. Be3 {[%clk 0:03:00.4]} 4... a6 {[%clk 0:03:01.2]} 5. Qd2 {[%clk 0:02:59.8]}
5... b5 {[%clk 0:03:01.5]} 6. O-O-O {[%clk 0:03:00.1]} 6... Bb7 {[%clk
0:03:01.3]} 7. Bd3 {[%clk 0:03:00]} 7... Nd7 {[%clk 0:03:01.1]} 8. h4 {[%clk
0:02:58.6]} 8... h5 {[%clk 0:03:00.7]} 9. Nh3 {[%clk 0:02:56.2]} 9... Ngf6
{[%clk 0:02:57.7]} 10. f3 {[%clk 0:02:55.6]} 10... e6 {[%clk 0:02:57]} 11. Kb1
{[%clk 0:02:53.5]} 11... Qe7 {[%clk 0:02:54.9]} 12. Ne2 {[%clk 0:02:42.1]} 12...
c5 {[%clk 0:02:49.3]} 13. c3 {[%clk 0:02:41]} 13... Rc8 {[%clk 0:02:17.3]} 14.
Ng5 {[%clk 0:02:39.1]} 14... Nb6 {[%clk 0:02:08.9]} 15. dxc5 {[%clk 0:01:24.4]}
15... dxc5 {[%clk 0:02:06.6]} 16. Qe1 {[%clk 0:00:58.1]} 16... Nfd7 {[%clk
0:01:46.7]} 17. f4 {[%clk 0:00:49.3]} 17... c4 {[%clk 0:01:25.7]} 18. Bc2 {[%clk
0:00:48.7]} 18... b4 {[%clk 0:01:20.4]} 19. cxb4 {[%clk 0:00:44.6]} 19... c3
{[%clk 0:01:10.5]} 20. b3 {[%clk 0:00:44.4]} 20... Qxb4 {[%clk 0:01:08]} 21. Bc1
{[%clk 0:00:19.5]} 21... Nc4 {[%clk 0:00:52.6]} 22. Rxd7 {[%clk 0:00:04.5]}
22... Kxd7 {[%clk 0:00:28.8]} 23. Nxf7 {[%clk 0:00:04.3]} 23... Nd2+ {[%clk
0:00:15.8]} 24. Ka1 {[%clk 0:00:03.9]} 24... Rhf8 {[%clk 0:00:11.3]} 25. Ng5
{[%clk 0:00:04]} 25... Ke7 {[%clk 0:00:06.7]} 26. e5 {[%clk 0:00:03.9]} 26...
Rfd8 {[%clk 0:00:04.6]} 27. Ng3 {[%clk 0:00:03.3]} 27... a5 {[%clk 0:00:02.7]}
28. N3e4 {[%clk 0:00:02.4]} 28... a4 {[%clk 0:00:02.7]} 0-1

[Event "Early-Titled-Tuesday-Blitz-June-18-2024"]
[Site "Chess.com"]
[Date "2024.06.18"]
[Round "7"]
[White "averageFM"]
[Black "Cheer_Down"]
[Result "0-1"]
[WhiteElo "2564"]
[BlackElo "2444"]
[TimeControl "180+1"]
[EndTime "9:20:13 PDT"]
[Termination "Cheer_Down won by resignation"]

1. e4 {[%clk 0:03:00.9]} 1... e6 {[%clk 0:02:59.9]} 2. d4 {[%clk 0:03:00.2]}
2... d5 {[%clk 0:03:00.2]} 3. exd5 {[%clk 0:03:00.6]} 3... exd5 {[%clk 0:03:00]}
4. Nf3 {[%clk 0:03:01]} 4... Nf6 {[%clk 0:02:59.9]} 5. Bd3 {[%clk 0:03:00.9]}
5... c5 {[%clk 0:02:59.9]} 6. O-O {[%clk 0:03:00.3]} 6... c4 {[%clk 0:02:59.7]}
7. Re1+ {[%clk 0:03:00.5]} 7... Be7 {[%clk 0:03:00.3]} 8. Bf1 {[%clk 0:03:01.3]}
8... O-O {[%clk 0:03:00.2]} 9. b3 {[%clk 0:03:01.5]} 9... cxb3 {[%clk
0:03:01.1]} 10. axb3 {[%clk 0:03:01.6]} 10... Nc6 {[%clk 0:03:00.3]} 11. h3
{[%clk 0:02:59.8]} 11... h6 {[%clk 0:02:58.6]} 12. c4 {[%clk 0:02:58.7]} 12...
Be6 {[%clk 0:02:50.6]} 13. c5 {[%clk 0:02:55.4]} 13... Ne4 {[%clk 0:02:49.5]}
14. Nbd2 {[%clk 0:02:46.8]} 14... Bf6 {[%clk 0:02:48.3]} 15. Bb2 {[%clk
0:02:42.3]} 15... Nxc5 {[%clk 0:02:45.8]} 16. Ne5 {[%clk 0:02:38.6]} 16... Nd7
{[%clk 0:02:36.1]} 17. Nxc6 {[%clk 0:02:31.6]} 17... bxc6 {[%clk 0:02:36.1]} 18.
Bd3 {[%clk 0:02:31.7]} 18... c5 {[%clk 0:02:33.9]} 19. Rxe6 {[%clk 0:02:28.6]}
19... fxe6 {[%clk 0:02:32.7]} 20. Qg4 {[%clk 0:02:28.2]} 20... Re8 {[%clk
0:02:17.6]} 21. Re1 {[%clk 0:02:22.3]} 21... Qe7 {[%clk 0:02:06]} 22. Nf3 {[%clk
0:01:56.7]} 22... Rab8 {[%clk 0:01:58.8]} 23. Bg6 {[%clk 0:01:54.9]} 23... Rxb3
{[%clk 0:01:43.4]} 24. Bxe8 {[%clk 0:01:53.5]} 24... Qxe8 {[%clk 0:01:43.8]} 25.
Rxe6 {[%clk 0:01:52.3]} 25... Qf7 {[%clk 0:01:41.7]} 26. Rd6 {[%clk 0:01:41.4]}
26... Nf8 {[%clk 0:01:38.1]} 27. Bc1 {[%clk 0:01:23.9]} 27... Rb1 {[%clk
0:01:37.2]} 28. Qf4 {[%clk 0:01:23.4]} 28... Bxd4 {[%clk 0:01:35.3]} 29. Kh2
{[%clk 0:01:13.9]} 29... Qxf4+ {[%clk 0:01:15]} 30. Bxf4 {[%clk 0:01:14.8]}
30... a5 {[%clk 0:01:11.8]} 31. Rd8 {[%clk 0:01:14.3]} 31... Kf7 {[%clk
0:01:10]} 32. Nxd4 {[%clk 0:01:09.9]} 32... cxd4 {[%clk 0:01:09.1]} 33. Rxd5
{[%clk 0:01:10]} 33... Ne6 {[%clk 0:01:07.8]} 34. Be5 {[%clk 0:01:09.5]} 34...
a4 {[%clk 0:01:02.2]} 35. f4 {[%clk 0:01:09]} 35... g6 {[%clk 0:00:54]} 36. Rd7+
{[%clk 0:01:08]} 36... Ke8 {[%clk 0:00:53.7]} 37. Rd6 {[%clk 0:01:05.7]} 37...
Ke7 {[%clk 0:00:53.3]} 38. Rd5 {[%clk 0:01:00.4]} 38... Rf1 {[%clk 0:00:31.2]}
39. Kg3 {[%clk 0:00:51.6]} 39... a3 {[%clk 0:00:23.3]} 40. Bd6+ {[%clk
0:00:51.2]} 40... Kf7 {[%clk 0:00:20.6]} 41. Bxa3 {[%clk 0:00:46.5]} 41... Nxf4
{[%clk 0:00:20.8]} 42. Rd7+ {[%clk 0:00:43.5]} 42... Ke6 {[%clk 0:00:21.1]} 43.
Rd6+ {[%clk 0:00:42.7]} 43... Ke5 {[%clk 0:00:21.5]} 44. Kh2 {[%clk 0:00:41.6]}
44... Rf2 {[%clk 0:00:20.3]} 45. Bc5 {[%clk 0:00:38.7]} 45... Rxg2+ {[%clk
0:00:19.9]} 46. Kh1 {[%clk 0:00:38.2]} 46... Rd2 {[%clk 0:00:20.5]} 47. Rd8
{[%clk 0:00:37.7]} 47... Ke4 {[%clk 0:00:20.5]} 48. Bf8 {[%clk 0:00:36.9]} 48...
h5 {[%clk 0:00:19.9]} 49. Bh6 {[%clk 0:00:37.1]} 49... Rf2 {[%clk 0:00:18.2]}
50. Re8+ {[%clk 0:00:36.1]} 50... Kf3 {[%clk 0:00:18.3]} 51. Rd8 {[%clk
0:00:36.5]} 51... Kg3 {[%clk 0:00:16]} 52. Kg1 {[%clk 0:00:36.3]} 52... Ne2+
{[%clk 0:00:15.1]} 0-1